bitfinex-derivatives/quotes_BTCF0:USTF0_20250528
["timestamp","ask_amount","ask_price","bid_price","bid_amount"]
[1748474192276,0.6298169,108020.0,108010.0,0.75886656]
[1748474192479,0.44472,108020.0,108010.0,0.75886656]
[1748474192976,0.6298169,108020.0,108010.0,0.75886656]
[1748474193376,0.6298169,108020.0,108010.0,0.72163656]
[1748474193573,0.6298169,108020.0,108010.0,0.25511656]
[1748474193782,0.6298169,108020.0,108010.0,0.72187656]
[1748474194378,0.6298169,108020.0,108010.0,0.25511656]
[1748474195277,1.1256536,108020.0,108010.0,0.22181656]
[1748474195767,0.9906169,108020.0,108010.0,0.68793656]
[1748474195975,0.9906169,108020.0,108010.0,0.22181656]
[1748474196173,0.9906169,108020.0,108010.0,0.68785656]
[1748474196569,0.9906169,108020.0,108010.0,0.68763677]
[1748474196779,1.02958951,108020.0,108010.0,0.72143677]
[1748474196984,1.02958951,108020.0,108010.0,0.72187677]
[1748474197188,0.9906169,108020.0,108010.0,0.72187677]
[1748474197390,1.02961796,108020.0,108010.0,0.72187677]
[1748474197770,0.66881796,108020.0,108010.0,0.72187677]
[1748474197974,0.48372106,108020.0,108010.0,0.72187677]
[1748474198177,0.66881796,108020.0,108010.0,0.72187677]
[1748474198375,0.66869796,108020.0,108010.0,0.72187677]
[1748474198582,0.66881796,108020.0,108010.0,1.08267677]
[1748474198772,0.6298169,108020.0,108010.0,0.72187677]
[1748474198977,0.66884752,108020.0,108010.0,0.72187677]
[1748474199182,0.66884752,108020.0,108010.0,0.22159677]
[1748474199381,1.16468422,108020.0,108010.0,0.18089677]
[1748474199579,1.16468422,108020.0,108010.0,0.64869677]
[1748474199881,1.02964752,108020.0,108010.0,0.64865677]
[1748474200576,0.66884752,108020.0,108010.0,0.64865677]
[1748474201478,0.66884752,108020.0,108010.0,0.18089677]
[1748474203175,0.66884752,108020.0,108010.0,0.21449677]
[1748474203891,0.79231306,108020.0,108010.0,0.21449677]
[1748474204276,0.66884752,108020.0,108010.0,0.58529677]
[1748474205075,0.66884752,108020.0,108010.0,1.05277677]
[1748474205475,0.66884752,108020.0,108010.0,0.69197677]
[1748474205784,0.71205816,108020.0,108010.0,0.69197677]
[1748474206182,0.66884752,108020.0,108010.0,0.69197677]
[1748474206381,0.71205816,108020.0,108010.0,0.69197677]
[1748474207295,1.25385381,108020.0,108010.0,0.50317]
[1748474207476,1.25385381,108020.0,108010.0,0.654484]
[1748474207976,1.25385381,108020.0,108010.0,0.187884]
[1748474208889,0.185114,108010.0,108000.0,0.00013886]
[1748474209090,0.185114,108010.0,107980.0,0.23264771]
[1748474209091,0.1851483,107990.0,107980.0,0.23264771]
[1748474209389,1.13182686,107990.0,107980.0,0.20024771]
[1748474209585,1.58842686,107990.0,107980.0,0.01508981]
[1748474209796,1.64627006,107990.0,107980.0,0.01508981]
[1748474209979,0.1851655,107980.0,107970.0,0.23160966]
[1748474210174,1.14500872,107980.0,107970.0,0.23160966]
[1748474211077,1.14489224,107980.0,107970.0,0.23160966]
[1748474211276,1.10159187,107980.0,107970.0,0.23160966]
[1748474212077,0.97812633,107980.0,107970.0,0.23160966]
[1748474213680,0.79296083,107980.0,107970.0,0.23160966]
[1748474213880,0.43228083,107980.0,107970.0,0.29750966]
[1748474214090,0.578486,107980.0,107970.0,0.29750966]
[1748474214291,0.939286,107980.0,107970.0,0.26480966]
[1748474215082,1.11321299,107980.0,107970.0,0.26480966]
[1748474215282,1.07444667,107980.0,107970.0,0.26480966]
[1748474215485,0.939286,107980.0,107970.0,0.26480966]
[1748474215788,0.97804044,107980.0,107970.0,0.18532206]
[1748474216089,0.939286,107980.0,107970.0,0.18532206]
[1748474216497,0.939286,107980.0,107970.0,0.21762206]
[1748474217486,1.061606,107980.0,107970.0,0.21762206]
[1748474218779,1.10033494,107980.0,107970.0,0.21762206]
[1748474219297,1.10033454,107980.0,107970.0,0.21762206]
[1748474219794,1.10033454,107980.0,107970.0,0.25062206]
[1748474220597,1.10033454,107980.0,107970.0,0.21762206]
[1748474222695,1.23549521,107980.0,107970.0,0.21762206]
[1748474222891,0.1851832,107970.0,107960.0,0.3268608]
[1748474223193,0.98011174,107970.0,107960.0,0.3600608]
[1748474223397,1.10964387,107970.0,107960.0,0.2674621]
[1748474223898,0.9744832,107970.0,107960.0,0.2674621]
[1748474225595,0.3954,107970.0,107960.0,0.43432277]
[1748474225902,0.5805832,107970.0,107960.0,0.46822277]
[1748474226087,0.5807032,107970.0,107960.0,0.46822277]
[1748474226285,0.9415032,107970.0,107960.0,0.2674621]
[1748474226799,0.9752032,107970.0,107960.0,0.2674621]
[1748474227793,1.11036387,107970.0,107960.0,0.00277]
[1748474228100,1.14908233,107970.0,107960.0,0.00277]
[1748474228684,1.14908233,107970.0,107960.0,0.1879704]
[1748474229091,1.01392166,107970.0,107960.0,0.1879704]
[1748474229393,1.14908233,107970.0,107960.0,0.00277]
[1748474229995,1.01392505,107970.0,107960.0,0.00277]
[1748474230187,1.14908572,107970.0,107960.0,0.00277]
[1748474233092,1.14908572,107970.0,107960.0,0.1879704]
[1748474233400,0.0463061,107950.0,107920.0,0.407115]
[1748474233585,0.0463061,107950.0,107930.0,0.2182518]
[1748474233586,0.80471997,107940.0,107930.0,0.2182518]
[1748474233786,0.37,107940.0,107930.0,0.74511247]
[1748474233990,0.37,107940.0,107930.0,0.73355516]
[1748474234186,0.5552347,107940.0,107930.0,0.73355516]
[1748474235298,0.5691247,107940.0,107930.0,0.73355516]
[1748474236301,0.5691247,107940.0,107930.0,0.6099518]
[1748474237900,0.5691247,107940.0,107930.0,1.0747118]
[1748474238092,0.5691247,107940.0,107930.0,1.19831516]
[1748474238494,0.5691247,107940.0,107930.0,0.73355516]
[1748474238695,0.5691247,107940.0,107930.0,0.6099518]
[1748474238900,0.5691247,107940.0,107930.0,0.73355516]
[1748474239403,0.5691247,107940.0,107930.0,2.23355516]
[1748474240203,0.5691247,107940.0,107930.0,2.1099518]
[1748474240404,0.6336247,107940.0,107930.0,2.1099518]
[1748474240794,0.6336247,107940.0,107930.0,1.7491518]
[1748474240994,0.6336247,107940.0,107930.0,0.2491518]
[1748474241390,0.75722806,107940.0,107930.0,1.7491518]
[1748474241693,0.1852522,107930.0,107920.0,0.26768826]
[1748474241897,0.1852522,107930.0,107920.0,0.34610546]
[1748474241898,0.72315556,107930.0,107920.0,0.34610546]
[1748474242913,0.72315556,107930.0,107920.0,0.37900546]
[1748474243099,0.75485556,107930.0,107920.0,0.37900546]
[1748474243491,0.75485556,107930.0,107920.0,0.10110886]
[1748474243697,0.9920522,107930.0,107920.0,0.22107826]
[1748474243893,1.03088605,107930.0,107920.0,0.22107826]
[1748474244099,1.15448941,107930.0,107920.0,0.22107826]
[1748474244604,1.11565556,107930.0,107920.0,0.22107826]
[1748474244913,1.11565556,107930.0,107900.0,0.3647228]
[1748474244914,0.1852866,107910.0,107900.0,0.3647228]
[1748474245200,0.38,107910.0,107900.0,0.51902616]
[1748474245405,0.5652866,107910.0,107900.0,0.51902616]
[1748474245989,0.9260866,107910.0,107900.0,0.53157605]
[1748474246194,0.9590866,107910.0,107900.0,0.55212616]
[1748474246388,0.9590866,107910.0,107900.0,0.4285228]
[1748474246602,0.9590866,107910.0,107900.0,0.55212616]
[1748474246900,0.9590866,107910.0,107900.0,0.57732951]
[1748474247103,0.9590866,107910.0,107900.0,0.56472785]
[1748474247300,0.9901866,107910.0,107900.0,0.57732952]
[1748474247709,0.9901866,107910.0,107900.0,0.58993298]
[1748474247909,0.62336111,107910.0,107900.0,0.58993298]
[1748474248200,0.62336111,107910.0,107900.0,0.96073298]
[1748474248201,0.37397451,107910.0,107900.0,0.96073298]
[1748474248407,0.37409451,107910.0,107900.0,0.96073298]
[1748474248706,0.37409451,107910.0,107900.0,1.07074786]
[1748474248905,0.36493786,107910.0,107900.0,1.08330527]
[1748474249212,0.36505786,107910.0,107900.0,1.07073572]
[1748474249402,0.36505786,107910.0,107900.0,1.06073572]
[1748474249597,0.36505786,107910.0,107900.0,1.0732532]
[1748474249801,0.36505786,107910.0,107900.0,1.0857715]
[1748474250003,0.36505786,107910.0,107900.0,1.08487871]
[1748474251006,0.36505786,107910.0,107900.0,1.10735435]
[1748474251210,0.36505786,107910.0,107900.0,1.09487871]
[1748474252104,0.36505786,107910.0,107900.0,1.08487871]
[1748474253909,0.36505786,107910.0,107900.0,2.58487871]
[1748474255007,0.39695786,107910.0,107900.0,2.58487871]
[1748474255309,0.36505786,107910.0,107900.0,2.58487871]
[1748474257006,0.36505786,107910.0,107900.0,3.05011871]
[1748474257607,0.36505786,107910.0,107900.0,2.91488986]
[1748474257812,0.36505786,107910.0,107900.0,3.05011871]
[1748474258011,0.36505786,107910.0,107900.0,2.58487871]
[1748474258211,0.36505786,107910.0,107900.0,3.13208124]
[1748474259011,0.35602118,107910.0,107900.0,2.54369097]
[1748474259214,0.55635003,107910.0,107900.0,1.04369097]
[1748474259511,0.74163663,107910.0,107900.0,0.44574986]
[1748474259718,0.74163663,107910.0,107900.0,1.95843208]
[1748474260011,0.74163663,107910.0,107900.0,1.89416179]
[1748474260012,1.10243663,107910.0,107900.0,1.89416179]
[1748474260215,1.10243663,107910.0,107900.0,1.88151157]
[1748474260413,0.96720778,107910.0,107900.0,1.89432553]
[1748474260608,1.10243663,107910.0,107900.0,0.39432553]
[1748474260813,1.10243663,107910.0,107900.0,0.38151157]
[1748474261015,1.10243663,107910.0,107900.0,0.39433408]
[1748474261417,1.14060066,107910.0,107900.0,0.16311467]
[1748474261606,1.14060066,107910.0,107900.0,0.36135741]
[1748474261806,1.14060066,107910.0,107900.0,0.17605361]
[1748474262010,1.14060066,107910.0,107900.0,0.3614021]
[1748474262518,1.14060066,107910.0,107900.0,0.36140573]
[1748474262905,1.10243663,107910.0,107900.0,0.36140573]
[1748474263111,1.14060283,107910.0,107900.0,0.36140573]
[1748474263311,1.14060283,107910.0,107900.0,0.17611675]
[1748474263710,1.58428898,107910.0,107900.0,0.17619242]
[1748474264009,1.62776372,107910.0,107900.0,0.17637891]
[1748474264215,1.54099892,107910.0,107900.0,0.17637891]
[1748474264411,1.5842831,107910.0,107900.0,0.17638036]
[1748474264609,1.44905425,107910.0,107900.0,0.17638036]
[1748474264820,1.5842831,107910.0,107900.0,0.17638036]
[1748474265521,1.5842831,107910.0,107900.0,0.17610198]
[1748474265913,1.5842831,107910.0,107900.0,0.16311467]
[1748474266112,1.5842831,107910.0,107900.0,0.17610295]
[1748474266312,1.5842831,107910.0,107900.0,0.17610395]
[1748474266513,1.5842831,107910.0,107900.0,0.16311467]
[1748474266719,1.5842831,107910.0,107900.0,0.17578648]
[1748474266917,1.24160709,107910.0,107900.0,0.36109028]
[1748474267122,1.76936744,107910.0,107900.0,0.17578648]
[1748474267512,1.76936744,107910.0,107900.0,0.17574542]
[1748474267708,1.76936744,107910.0,107900.0,0.17578675]
[1748474267913,1.76936744,107910.0,107900.0,0.17578748]
[1748474268117,1.76936744,107910.0,107900.0,0.3610912]
[1748474268424,1.68803663,107910.0,107900.0,0.17573107]
[1748474268611,1.76935964,107910.0,107900.0,0.18834385]
[1748474268923,1.76935964,107910.0,107900.0,0.17573107]
[1748474270017,1.76935964,107910.0,107900.0,0.18835662]
[1748474270209,1.76935964,107910.0,107900.0,0.18840169]
[1748474270414,1.76935964,107910.0,107900.0,0.18840442]
[1748474270624,1.76935964,107910.0,107900.0,0.17573107]
[1748474271322,1.76938134,107910.0,107900.0,0.17573107]
[1748474271915,1.88165029,107910.0,107900.0,0.18836148]
[1748474272116,1.88165029,107910.0,107900.0,0.17573107]
[1748474272315,1.93937037,107910.0,107900.0,0.17573107]
[1748474272515,0.93222139,107910.0,107900.0,0.36103477]
[1748474272716,1.75646139,107910.0,107900.0,0.39313477]
[1748474272932,0.64436355,107910.0,107900.0,0.78783477]
[1748474273119,0.54184118,107910.0,107900.0,0.78805455]
[1748474273426,0.72700778,107910.0,107900.0,0.78805455]
[1748474273621,0.72712778,107910.0,107900.0,0.78805455]
[1748474275019,0.72712778,107910.0,107900.0,0.42725455]
[1748474275927,0.74102778,107910.0,107900.0,0.42725455]
[1748474276128,0.86477668,107910.0,107900.0,0.42725455]
[1748474276325,1.22557668,107910.0,107900.0,0.42725455]
[1748474276524,0.86477668,107910.0,107900.0,0.42725455]
[1748474276822,1.10182778,107910.0,107900.0,0.42725455]
[1748474277026,0.74405668,107910.0,107900.0,0.42725455]
[1748474277625,1.10485668,107910.0,107900.0,0.42725455]
[1748474278419,1.22860558,107910.0,107900.0,0.20805085]
[1748474278727,1.26668331,107910.0,107900.0,0.20805085]
[1748474279028,1.26668331,107910.0,107900.0,0.18845785]
[1748474279216,1.26668331,107910.0,107900.0,0.17595085]
[1748474279815,1.30996561,107910.0,107900.0,0.17595085]
[1748474280329,1.72800847,107910.0,107900.0,0.36125465]
[1748474280529,1.60425957,107910.0,107900.0,0.36125465]
[1748474280917,1.60425957,107910.0,107900.0,0.39295465]
[1748474281933,1.60425957,107910.0,107900.0,0.40556913]
[1748474282120,1.60425957,107910.0,107900.0,0.40559709]
[1748474282321,1.64753671,107910.0,107900.0,0.39295465]
[1748474282520,1.60426691,107910.0,107900.0,0.39295465]
[1748474282728,1.64755276,107910.0,107900.0,0.39295465]
[1748474282928,1.64755276,107910.0,107900.0,0.405607]
[1748474283130,1.64755276,107910.0,107900.0,0.39295465]
[1748474284122,1.64755276,107910.0,107900.0,0.22030419]
[1748474284425,1.77130166,107910.0,107900.0,0.20765085]
[1748474284646,1.77132925,107910.0,107900.0,0.17595085]
[1748474284818,1.77132925,107910.0,107900.0,0.18864899]
[1748474285020,1.77132925,107910.0,107900.0,0.17595085]
[1748474285236,1.82904933,107910.0,107900.0,0.17595085]
[1748474285430,1.77132925,107910.0,107900.0,0.17595085]
[1748474285941,1.82904933,107910.0,107900.0,0.17595085]
[1748474287234,1.82904933,107910.0,107900.0,0.13200325]
[1748474287530,0.1853038,107900.0,107890.0,0.00291886]
[1748474287736,1.30469591,107900.0,107890.0,0.00291886]
[1748474287941,1.34802951,107900.0,107890.0,0.00291886]
[1748474288531,1.30469591,107900.0,107890.0,0.00291886]
[1748474288834,1.39146071,107900.0,107890.0,0.00291886]
[1748474289330,1.33374063,107900.0,107890.0,0.00291886]
[1748474289535,1.26778535,107900.0,107890.0,0.00291886]
[1748474289727,1.39153425,107900.0,107890.0,0.00291886]
[1748474289931,1.30476945,107900.0,107890.0,0.03481886]
[1748474290632,1.30396213,107900.0,107890.0,0.03481886]
[1748474290826,1.39072693,107900.0,107890.0,0.03481886]
[1748474291333,1.30396213,107900.0,107890.0,0.03481886]
[1748474291729,1.76776213,107900.0,107890.0,0.03481886]
[1748474292436,2.26686213,107900.0,107890.0,0.03481886]
[1748474293027,2.39696152,107900.0,107890.0,0.03481886]
[1748474293328,1.55859323,107900.0,107890.0,0.22013986]
[1748474293640,2.25096366,107900.0,107890.0,0.25223986]
[1748474293829,2.25108366,107900.0,107890.0,0.25223986]
[1748474294335,2.25108366,107900.0,107890.0,0.06691886]
[1748474294531,2.25108366,107900.0,107890.0,0.25223986]
[1748474294932,2.25097448,107900.0,107890.0,0.25223986]
[1748474295139,2.25097448,107900.0,107890.0,0.06691886]
[1748474295530,2.25097448,107900.0,107890.0,0.03481886]
[1748474296529,2.25097448,107900.0,107890.0,0.00291886]
[1748474296834,2.3087681,107900.0,107890.0,0.00291886]
[1748474297145,2.8031612,107900.0,107870.0,0.0688]
[1748474297334,1.0459492,107880.0,107870.0,0.0345]
[1748474297640,2.28649005,107880.0,107870.0,0.0345]
[1748474297838,2.26604115,107880.0,107870.0,0.0345]
[1748474298739,2.26604115,107880.0,107870.0,0.2198553]
[1748474298935,2.26605971,107880.0,107870.0,0.2198553]
[1748474299431,2.38980861,107880.0,107870.0,0.04715841]
[1748474299637,2.34649209,107880.0,107870.0,0.04715841]
[1748474299842,2.34649209,107880.0,107870.0,0.04721937]
[1748474300037,2.23643052,107880.0,107870.0,0.04721937]
[1748474300343,2.23643052,107880.0,107870.0,0.23256327]
[1748474300526,2.23643052,107880.0,107870.0,0.23256326]
[1748474300925,2.23643052,107880.0,107870.0,0.26736574]
[1748474301338,2.23643052,107880.0,107870.0,0.2546553]
[1748474301548,1.53028162,107880.0,107870.0,0.26732058]
[1748474301726,2.20203052,107880.0,107870.0,0.2546553]
[1748474302126,1.49688162,107880.0,107870.0,0.2546553]
[1748474302341,0.33,107880.0,107870.0,0.7392042]
[1748474302560,0.34402,107880.0,107870.0,0.75176596]
[1748474302844,0.34402,107880.0,107870.0,0.8592042]
[1748474302845,0.3439,107880.0,107870.0,0.8592042]
[1748474303038,0.34402,107880.0,107870.0,0.8592042]
[1748474303731,0.5293581,107880.0,107870.0,0.7354553]
[1748474303931,0.5293581,107880.0,107870.0,0.1893]
[1748474303932,1.013907,107880.0,107870.0,0.1893]
[1748474304136,1.013907,107880.0,107870.0,0.08189607]
[1748474304137,1.24286608,107880.0,107870.0,0.08189607]
[1748474304342,1.90131045,107880.0,107870.0,0.08189607]
[1748474304543,1.77756155,107880.0,107870.0,0.04709607]
[1748474305035,1.73427718,107880.0,107870.0,0.24515597]
[1748474305245,1.77756155,107880.0,107870.0,0.24510543]
[1748474305544,1.77756155,107880.0,107870.0,0.26705137]
[1748474305737,1.77756155,107880.0,107870.0,0.09435665]
[1748474305938,1.77756155,107880.0,107870.0,0.08169607]
[1748474306135,1.77756155,107880.0,107870.0,0.27971196]
[1748474306335,1.90131045,107880.0,107870.0,0.09435666]
[1748474306545,1.77756155,107880.0,107870.0,0.09435666]
[1748474306730,1.77756155,107880.0,107870.0,0.09436401]
[1748474306935,1.77756155,107880.0,107870.0,0.08169607]
[1748474307144,1.77759427,107880.0,107870.0,0.09436109]
[1748474307447,1.77759427,107880.0,107870.0,0.09435997]
[1748474307743,1.77759427,107880.0,107870.0,0.27971527]
[1748474307939,1.77759427,107880.0,107870.0,0.09435997]
[1748474308246,1.31563427,107880.0,107870.0,0.09434473]
[1748474308446,1.31563427,107880.0,107870.0,0.09434575]
[1748474308647,1.31563427,107880.0,107870.0,0.09434569]
[1748474308843,1.31563427,107880.0,107870.0,0.08169607]
[1748474309451,1.31563427,107880.0,107870.0,0.09434838]
[1748474309635,1.31563427,107880.0,107870.0,0.292356]
[1748474310246,1.07188537,107880.0,107870.0,0.292356]
[1748474310549,1.37208546,107880.0,107870.0,0.292356]
[1748474310753,1.37208546,107880.0,107870.0,0.30490847]
[1748474310941,1.37196546,107880.0,107870.0,0.292356]
[1748474311143,1.37208546,107880.0,107870.0,0.292356]
[1748474311343,1.37210105,107880.0,107870.0,0.292356]
[1748474311738,0.56659215,107880.0,107870.0,0.292356]
[1748474311938,0.56659215,107880.0,107870.0,0.7769049]
[1748474311939,0.3439,107880.0,107870.0,0.7769049]
[1748474312139,0.34402,107880.0,107870.0,0.7869049]
[1748474312352,0.5292381,107880.0,107870.0,2.2869049]
[1748474312549,0.5292381,107880.0,107870.0,2.36842743]
[1748474312851,0.34402,107880.0,107870.0,2.71112743]
[1748474313052,0.34402,107880.0,107870.0,2.72750767]
[1748474313347,0.3439,107880.0,107870.0,2.85375877]
[1748474313550,0.653107,107880.0,107870.0,1.76490347]
[1748474313751,1.048907,107880.0,107870.0,0.16147481]
[1748474314045,1.3255559,107880.0,107870.0,0.08502638]
[1748474314251,1.36888293,107880.0,107870.0,0.08503017]
[1748474314949,1.36888293,107880.0,107870.0,0.08506162]
[1748474315153,1.36888293,107880.0,107870.0,0.08506378]
[1748474315350,1.36888293,107880.0,107870.0,0.08508251]
[1748474315553,0.34402,107880.0,107870.0,0.92677901]
[1748474315848,0.3439,107880.0,107870.0,1.43731901]
[1748474316050,0.34402,107880.0,107870.0,1.72795344]
[1748474317747,0.34402,107880.0,107870.0,1.74795344]
[1748474317938,0.32012,107880.0,107870.0,2.09795344]
[1748474318252,0.00013886,107890.0,107880.0,0.1853381]
[1748474318451,0.32013886,107890.0,107880.0,1.42289492]
[1748474319351,0.32013886,107890.0,107880.0,1.38289492]
[1748474320450,0.32013886,107890.0,107880.0,0.78700025]
[1748474320654,0.32013886,107890.0,107880.0,2.42229492]
[1748474320852,0.49260454,107920.0,107910.0,0.1852866]
[1748474321152,1.06107394,107920.0,107910.0,0.1852866]
[1748474321357,1.36107394,107920.0,107910.0,0.2877866]
[1748474321652,1.39649394,107920.0,107910.0,0.2877866]
[1748474322753,1.03569394,107920.0,107910.0,0.2877866]
[1748474323258,0.91781394,107920.0,107910.0,0.2877866]
[1748474324751,1.05310861,107920.0,107910.0,0.2877866]
[1748474326355,1.05310861,107920.0,107910.0,1.7877866]
[1748474326555,0.91781394,107920.0,107910.0,1.7877866]
[1748474326742,0.95331394,107920.0,107910.0,1.7877866]
[1748474327246,0.95331394,107920.0,107910.0,1.5]
[1748474327247,1.44940861,107920.0,107910.0,1.5]
[1748474327454,1.44940861,107920.0,107910.0,1.6852866]
[1748474328950,0.92180454,107920.0,107910.0,1.9427506]
[1748474329145,0.36275886,107930.0,107920.0,0.1852694]
[1748474329146,0.00195886,107930.0,107920.0,0.1852694]
[1748474329452,0.57967864,107970.0,107960.0,0.1852008]
[1748474329652,0.57967864,107970.0,107960.0,0.69129547]
[1748474329653,0.22,107970.0,107960.0,0.69129547]
[1748474329856,0.22,107970.0,107960.0,2.1591008]
[1748474330362,0.22,107970.0,107960.0,2.1518708]
[1748474330546,0.2559,107970.0,107960.0,2.1518708]
[1748474330858,0.25602,107970.0,107960.0,2.1518708]
[1748474332153,0.29072,107970.0,107960.0,2.1518708]
[1748474332963,0.29072,107970.0,107960.0,2.41716547]
[1748474332964,0.22012,107970.0,107960.0,2.41716547]
[1748474333154,0.194375,107970.0,107960.0,2.77796547]
[1748474333354,0.00152893,107980.0,107970.0,0.1851837]
[1748474333548,0.16013886,107980.0,107970.0,1.48777837]
[1748474333855,0.37013886,107980.0,107970.0,1.58039437]
[1748474334946,0.33555576,107980.0,107970.0,1.58039437]
[1748474335147,0.26618276,107980.0,107970.0,1.83039437]
[1748474335349,0.1,108000.0,107990.0,0.1851494]
[1748474335559,0.1,108000.0,107990.0,1.74072407]
[1748474335560,0.42,108000.0,107990.0,1.74072407]
[1748474335861,0.42,108000.0,107990.0,3.40122007]
[1748474336162,0.3813883,108000.0,107990.0,3.40122007]
[1748474336456,0.3813883,108000.0,107990.0,2.94254007]
[1748474336655,0.3815083,108000.0,107990.0,2.9632494]
[1748474336860,0.3813883,108000.0,107990.0,2.9632494]
[1748474337061,0.3815083,108000.0,107990.0,3.09854407]
[1748474337458,0.3815083,108000.0,107990.0,2.9632494]
[1748474337854,0.3815083,108000.0,107990.0,2.5046494]
[1748474338054,0.3815083,108000.0,107990.0,2.9627694]
[1748474338361,0.3815083,108000.0,107990.0,2.4846494]
[1748474338658,0.3815083,108000.0,107990.0,1.57846407]
[1748474338852,0.3813883,108000.0,107990.0,1.88106007]
[1748474339048,0.0715083,108000.0,107990.0,3.38106007]
[1748474339257,0.0361651,108000.0,107990.0,3.38106007]
[1748474339452,0.0360451,108000.0,107990.0,3.38106007]
[1748474339652,0.0361651,108000.0,107990.0,3.38106007]
[1748474340953,0.0661651,108000.0,107990.0,3.38106007]
[1748474341161,0.5612973,108000.0,107990.0,0.0679]
[1748474341456,0.9923973,108000.0,107990.0,0.7114893]
[1748474341861,0.9923973,108000.0,107990.0,0.7113293]
[1748474342054,0.9923973,108000.0,107990.0,0.2530493]
[1748474342249,0.9923973,108000.0,107990.0,0.0679]
[1748474342457,0.9923973,108000.0,107980.0,2.03410436]
[1748474342458,0.1851495,107990.0,107980.0,2.53851316]
[1748474342659,0.5757495,107990.0,107980.0,0.65209316]
[1748474342860,0.71104417,107990.0,107980.0,0.71500546]
[1748474343055,0.5757495,107990.0,107980.0,0.25700546]
[1748474343254,0.9365495,107990.0,107980.0,0.25700546]
[1748474343451,0.5757495,107990.0,107980.0,0.25700546]
[1748474343657,0.3906,107990.0,107980.0,0.75310013]
[1748474343957,0.5757495,107990.0,107980.0,0.62780546]
[1748474344269,0.5757495,107990.0,107980.0,1.09024546]
[1748474344657,0.5757495,107990.0,107980.0,0.62780546]
[1748474344854,0.3558,107990.0,107980.0,0.62780546]
[1748474345167,0.3558,107990.0,107980.0,1.08992546]
[1748474345356,0.5409494,107990.0,107980.0,1.08992546]
[1748474345556,0.5778694,107990.0,107980.0,1.08992546]
[1748474345963,0.39272,107990.0,107980.0,1.08992546]
[1748474347870,0.5778694,107990.0,107980.0,1.08952546]
[1748474348164,0.5778694,107990.0,107980.0,0.26700546]
[1748474349264,0.71316407,107990.0,107980.0,0.08183886]
[1748474349467,1.07396407,107990.0,107980.0,0.18530536]
[1748474349772,0.6125694,107990.0,107980.0,0.18530536]
[1748474349965,0.42742,107990.0,107980.0,0.18530536]
[1748474350165,0.6125694,107990.0,107980.0,0.18530536]
[1748474351871,1.10866407,107990.0,107980.0,0.18530536]
[1748474352062,1.22794407,107990.0,107980.0,0.00013886]
[1748474352262,1.69054407,107990.0,107980.0,0.00013886]
[1748474352462,1.69054407,107990.0,107980.0,0.18530536]
[1748474352765,0.5467,107990.0,107980.0,0.18530536]
[1748474352959,0.5467,107990.0,107980.0,0.25520536]
[1748474353363,0.54658,107990.0,107980.0,0.25520536]
[1748474353864,0.5467,107990.0,107980.0,0.25520536]
[1748474354065,0.7318494,107990.0,107980.0,0.25520536]
[1748474354266,1.22794407,107990.0,107980.0,0.18530536]
[1748474354772,1.22794407,107990.0,107980.0,0.00013886]
[1748474354979,1.22794407,107990.0,107980.0,0.22530536]
[1748474355167,1.22794407,107990.0,107980.0,0.00013886]
[1748474355370,1.22794407,107990.0,107980.0,0.18530536]
[1748474356269,1.22794407,107990.0,107980.0,0.00013886]
[1748474357078,1.22794407,107990.0,107980.0,0.18530536]
[1748474357273,1.22794407,107990.0,107980.0,0.00013886]
[1748474357776,1.07396407,107990.0,107980.0,0.18530536]
[1748474358074,1.11136407,107990.0,107980.0,0.18530536]
[1748474361167,1.11136407,107990.0,107980.0,0.18807536]
[1748474362581,1.15462685,107990.0,107980.0,0.18807536]
[1748474362989,1.11136407,107990.0,107980.0,0.18807536]
[1748474365079,1.11136407,107990.0,107980.0,0.00290886]
[1748474365382,1.21240635,107990.0,107980.0,0.00290886]
[1748474365681,1.79148635,107990.0,107980.0,0.00290886]
[1748474366483,1.65620092,107990.0,107980.0,0.00290886]
[1748474366683,1.79149559,107990.0,107980.0,0.00290886]
[1748474367772,1.74822357,107990.0,107980.0,0.00290886]
[1748474368879,1.83430837,107990.0,107980.0,0.00290886]
[1748474369266,0.2314822,107970.0,107960.0,0.1852007]
[1748474369472,1.24315647,107970.0,107960.0,0.1852007]
[1748474369667,1.0587818,107970.0,107960.0,0.1852007]
[1748474369972,0.3854,107970.0,107960.0,0.5806007]
[1748474370172,0.35,107970.0,107960.0,0.67196573]
[1748474370678,0.35012,107970.0,107960.0,0.67196573]
[1748474371580,0.38552,107970.0,107960.0,0.67196573]
[1748474372574,0.5707035,107970.0,107960.0,0.31116573]
[1748474372774,0.74129817,107970.0,107960.0,0.31116573]
[1748474372987,0.6060035,107970.0,107960.0,0.31116573]
[1748474373375,7e-08,107990.0,107960.0,2.07313149]
[1748474373579,0.0360451,108000.0,107990.0,0.1851492]
[1748474373781,0.3860451,108000.0,107990.0,1.69393899]
[1748474374080,0.3861651,108000.0,107990.0,2.07506264]
[1748474374584,0.3861651,108000.0,107990.0,1.38883987]
[1748474374888,0.3861651,108000.0,107990.0,1.96695987]
[1748474375181,0.3861651,108000.0,107990.0,3.29864521]
[1748474375584,0.3861651,108000.0,107990.0,2.72052521]
[1748474375778,0.3861651,108000.0,107990.0,2.25263454]
[1748474376082,0.3861651,108000.0,107990.0,2.71111454]
[1748474377389,0.3861651,108000.0,107990.0,2.25263454]
[1748474377684,0.3861651,108000.0,107990.0,2.71063454]
[1748474378281,0.3861651,108000.0,107990.0,2.7650587]
[1748474379080,0.3861651,108000.0,107990.0,2.71063454]
[1748474379288,0.3861651,108000.0,107990.0,2.76504934]
[1748474379587,0.3861651,108000.0,107990.0,2.71063454]
[1748474380094,0.3861651,108000.0,107990.0,2.70979454]
[1748474380396,0.3861651,108000.0,107990.0,2.76419527]
[1748474383086,0.3951651,108000.0,107990.0,2.76519527]
[1748474384283,0.3951651,108000.0,107990.0,2.30803527]
[1748474384594,0.3951651,108000.0,107990.0,2.66298993]
[1748474384595,0.53045977,108000.0,107990.0,2.66298993]
[1748474384892,0.3951651,108000.0,107990.0,2.66298993]
[1748474385079,0.5802973,108000.0,107990.0,2.66298993]
[1748474385698,0.3951651,108000.0,107990.0,2.66298993]
[1748474386895,0.5802973,108000.0,107990.0,2.66298993]
[1748474388296,0.3951651,108000.0,107990.0,2.66298993]
[1748474389206,0.4304651,108000.0,107990.0,2.66298993]
[1748474390386,0.6155973,108000.0,107990.0,2.66298993]
[1748474395202,0.6527973,108000.0,107990.0,2.66298993]
[1748474395397,0.6827973,108000.0,107990.0,2.30014993]
[1748474396092,0.81809197,108000.0,107990.0,1.81104993]
[1748474396292,0.81809197,108000.0,107990.0,1.7566492]
[1748474396493,0.81809197,108000.0,107990.0,2.2111692]
[1748474396697,0.81809197,108000.0,107990.0,1.7566492]
[1748474397992,0.81809197,108000.0,107990.0,1.81104993]
[1748474398202,0.81809197,108000.0,107990.0,1.77684993]
[1748474399006,0.81809197,108000.0,107990.0,2.26524993]
[1748474399594,0.6827973,108000.0,107990.0,2.26524993]
[1748474400095,0.3951651,108000.0,107990.0,2.7813446]
[1748474400300,0.3950451,108000.0,107990.0,2.7813446]
[1748474400604,0.3950451,108000.0,107990.0,2.72773527]